Cogmind - Beta 16 @@@ ROGUE MODE // 2025.11.06 @ 16:31:31 Player: btrs Result: Self-destructed Performance ------------- Evolutions (3) 1500 Regions Visited (5) 1000 Robots Destroyed (33) 165 Value Destroyed (572) 572 Prototype IDs (1) 20 Alien Tech Used (0) 0 Bonus (0) 0 TOTAL SCORE: 3257 Bonus ------- None Cogmind --------- Core Integrity 512/700 Matter 300/300 Energy 149/150 System Corruption 1% Temperature Cool (0) Movement Core (50) Location -7/Factory Parts ------- > --- POWER (2) -------- Micro Nuclear Core > --- PROPULSION (4) --- (None) > --- UTILITY (5) ------ Weight Redist. System Weight Redist. System Visual Processing Unit Improved Signal Interpreter Hacking Suite > --- WEAPON (2) ------- Impact Mace > --- INVENTORY (5) ---- Improved Signal Interpreter Advanced Beam Rifle Light Assault Rifle Proton Missile Launcher Peak State ------------ > --- POWER ------------ Micro Nuclear Core > --- PROPULSION ------- Nuclear Pulse Thruster > --- UTILITY ---------- Weight Redist. System Weight Redist. System Visual Processing Unit Improved Signal Interpreter Hacking Suite > --- WEAPON ----------- Impact Mace > --- INVENTORY -------- Improved Signal Interpreter Advanced Beam Rifle Light Assault Rifle Proton Missile Launcher [Rating: 27] Favorites ----------- Power Light Ion Engine Engine Light Ion Engine Power Core Micro Nuclear Core Propulsion Flight Unit Treads Light Treads Wheel Compact Wheel Flight Unit Flight Unit Utility Visual Processing Unit Device Sensor Array Storage Small Storage Unit Processor Visual Processing Unit Hackware Hacking Suite Weapon Light Assault Rifle Energy Gun EM Pulse Gun Ballistic Gun Light Assault Rifle Special Weapon Mining Laser Impact Weapon Impact Mace Build | -11 -10 -10 -8 -8 -7 ------- Run | Yrd Mat Sub Mat Sto Fac Slots Evolved 6 | . . . 4 . 2 Power 1 | . . . . . 1 Propulsion 2 | . . . 2 . . Utility 3 | . . . 2 . 1 Weapon . | . . . . . . Parts Attached 31 | 6 8 . 8 3 6 Power 4 | 1 . . 2 . 1 Engine 2 | 1 . . 1 . . Core 2 | . . . 1 . 1 Reactor . | . . . . . . Propulsion 8 | 2 3 . 1 . 2 Treads 3 | 2 1 . . . . Leg . | . . . . . . Wheel 1 | . . . . . 1 Hover . | . . . . . . Flight 4 | . 2 . 1 . 1 Utility 13 | 1 2 . 4 3 3 Device 7 | . 1 . 3 1 2 Storage 1 | 1 . . . . . Processor 2 | . 1 . . . 1 Hackware 3 | . . . 1 2 . Protection . | . . . . . . Artifact . | . . . . . . Weapon 6 | 2 3 . 1 . . Energy Gun 2 | 1 1 . . . . Energy Cannon . | . . . . . . Ballistic Gun 2 | 1 1 . . . . Ballistic Cannon . | . . . . . . Launcher . | . . . . . . Special Weapon 1 | . 1 . . . . Impact Weapon 1 | . . . 1 . . Slashing Weapon . | . . . . . . Piercing Weapon . | . . . . . . Special Melee Weapon . | . . . . . . Unidentified Prototypes 1 | . . . 1 . . Parts Lost 9 | . 1 . 5 . 3 Power 1 | . . . 1 . . Propulsion 4 | . . . 2 . 2 Utility 3 | . . . 2 . 1 Weapon 1 | . 1 . . . . Highest Loss Streak 4 | . 1 . 4 . 1 To Critical Strikes . | . . . . . . Average Backups 4 | . 6 4 4 4 4 Power . | . 1 1 . . . Propulsion . | . 2 1 . . . Utility 1 | . 1 1 1 . 1 Weapon 1 | . 1 1 1 3 3 Tool/Special . | . . . . . . Unused Backups 11 | . 1 . 4 1 5 Power . | . . . . . . Propulsion . | . . . . . . Utility 3 | . 1 . . . 2 Weapon 8 | . . . 4 1 3 Tool/Special . | . . . . . . Average Slot Usage (%) 82 | . 97 100 61 60 65 Engine 9 | . 14 14 1 9 5 Core 1 | . . . 7 . 1 Treads 8 | . 23 . . . . Flight 10 | . 4 28 14 9 6 Device 12 | . 13 14 8 6 14 Storage 4 | . 11 . . . . Processor 8 | . . 14 9 9 14 Hackware 4 | . . . 8 18 7 Energy Gun 1 | . 3 . . . . Ballistic Gun 14 | . 22 18 9 9 5 Special Weapon 2 | . . 9 1 . . Impact Weapon 1 | . . . 2 . 6 Peak Build Rating 27 | 6 8 8 23 17 27 Average Rating 12 | 4 6 8 14 14 22 On Entrance 7 | . 6 8 8 10 15 Avg Prop Armor Cover (%) . | . . . . . . Naked Turns . | . . . . . . Heaviest Build 12 | 11 12 6 12 10 10 Greatest Support 40 | 40 40 8 12 10 22 Greatest Overweight (x) 3 | 3 . . 2 2 1 Average Overweight (x) . | . . . . . . Largest Inventory Capacity 8 | 8 8 5 5 5 5 Average Capacity 5 | 7 7 5 5 5 5 Most Carried 8 | 2 8 4 5 5 5 Average Carried 4 | 1 6 4 4 4 4 Final Capacity 8 | 8 5 5 5 5 5 Final Carried 5 | 2 4 4 3 5 4 Class Distribution -------------------- 67% | Mutant 22% | Scout 5% | Hacker-Mutant 3% | Scavenger-Mutant Dominant Class ---------------- Mutant | -10/Materials Mutant | -10/Subcaves Mutant | -8/Materials Hacker-Mutant | -8/Storage Scout | -7/Factory Resources | -11 -10 -10 -8 -8 -7 ----------- Run | Yrd Mat Sub Mat Sto Fac Matter Collected 693 | 188 235 70 55 21 124 Remotely . | . . . . . . Salvage Created 1148 | . 389 . 159 . 600 Parts 45 | . 25 . 7 . 13 Haulers Intercepted 4 | . 2 . . . 2 Recyclers Shooed 3 | . . . . . 3 Parts Field Recycled . | . . . . . . Retrieved Matter . | . . . . . . Parts Self-Destructed 6 | . . 6 . . . Prevented . | . . . . . . Parts Restored . | . . . . . . Kills | -11 -10 -10 -8 -8 -7 ------- Run | Yrd Mat Sub Mat Sto Fac Combat Hostiles Destroyed 14 | . 5 . 6 . 3 Melee 4 | . . . 3 . 1 Guns 5 | . 5 . . . . Classes Destroyed 10 | . 5 . 1 . 4 Worker 3 | . . . . . 3 Builder 3 | . . . . . 3 Tunneler 1 | . . . . . 1 Hauler 4 | . 2 . . . 2 Recycler 5 | . 1 . . . 4 Watcher 3 | . 3 . . . . Swarmer 5 | . 2 . 3 . . Grunt 5 | . 3 . . . 2 Sentry 3 | . . . 3 . . Programmer 1 | . . . . . 1 Best Kill Streak 9 | . 2 . 5 . 9 Combat Bots Only 5 | . 2 . 5 . 3 Max Kills in Single Turn 1 | . 1 . 1 . 1 Gunslinging . | . . . . . . Exploded . | . . . . . . Melee 1 | . . . 1 . 1 Uniques/NPCs Destroyed . | . . . . . . Combat | -11 -10 -10 -8 -8 -7 -------- Run | Yrd Mat Sub Mat Sto Fac Hostile Shots Fired 124 | . 35 11 57 8 13 Missed 47 | . 10 7 25 4 1 Hits 77 | . 25 4 32 4 12 Projectile 77 | . 25 4 32 4 12 Critical Strikes 1 | . . . 1 . . Damage Taken 1147 | . 253 107 392 64 331 Core 463 | . 35 61 133 46 188 Absorbed by Shields . | . . . . . . Regen/Repaired (Parts) 5 | . 5 . . . . Core Remaining (%) 76 | 100 . 61 . 67 . Volleys Fired 57 | . 45 12 . . . Largest 2 | . 2 1 . . . Hottest 100 | . 100 100 . . . Shots Fired 99 | . 87 12 . . . Gun 84 | . 84 . . . . Cannon . | . . . . . . Launcher . | . . . . . . Special 15 | . 3 12 . . . Kinetic 64 | . 64 . . . . Thermal 15 | . 3 12 . . . Explosive . | . . . . . . Electromagnetic 20 | . 20 . . . . Robot Hit Streak 6 | . 6 . . . . Robot Miss Streak 8 | . 8 . . . . Penetration Max . | . . . . . . Secondary Targets . | . . . . . . Shots Hit Robots 91 | . 46 . 21 . 24 Core Hits 30 | . 21 . 3 . 6 Critical Kills 3 | . . . 1 . 2 Critical Parts Destroyed 10 | . . . 5 . 5 Critical Strikes 13 | . . . 6 . 7 Smash 13 | . . . 6 . 7 Melee Attacks 58 | . . . 25 . 33 Impact 58 | . . . 25 . 33 Slashing . | . . . . . . Piercing . | . . . . . . Sneak Attacks 13 | . . . . . 13 Combat Hostiles . | . . . . . . Follow-up Attacks . | . . . . . . Damage Inflicted 3119 | . 425 . 856 . 1838 Guns 425 | . 425 . . . . Cannons . | . . . . . . Explosions . | . . . . . . Melee 2694 | . . . 856 . 1838 Ramming . | . . . . . . Kinetic 299 | . 299 . . . . Thermal . | . . . . . . Explosive . | . . . . . . Electromagnetic 126 | . 126 . . . . Impact 2694 | . . . 856 . 1838 Slashing . | . . . . . . Piercing . | . . . . . . Highest Corruption 2 | . 2 2 . . 1 Average Corruption 1 | . 2 2 . . 1 Corruption Purged . | . . . . . . Corruption Blocked . | . . . . . . Effects 13 | . 6 7 . . . Message Errors 1 | . 1 . . . . Matter Fused 4 | . 1 3 . . . Heat Flow Errors 2 | . 2 . . . . Energy Discharges 1 | . . 1 . . . Data Loss (minor) 4 | . 1 3 . . . Data Loss (major) 1 | . 1 . . . . Overload Shots . | . . . . . . Overflow Damage 1000 | . . . 218 . 782 Projectiles . | . . . . . . Explosions . | . . . . . . Melee 1000 | . . . 218 . 782 Knockbacks 10 | . . . 1 . 9 Impact 10 | . . . 1 . 9 Kinetic . | . . . . . . Secondary . | . . . . . . Self-Inflicted Damage . | . . . . . . Shots . | . . . . . . Rammed . | . . . . . . Targets Rammed . | . . . . . . Kicked . | . . . . . . Crushed . | . . . . . . Highest Temperature 244 | . 244 12 4 . . Average Temperature 55 | . 55 12 4 . . Received Heat Transfer 303 | . 96 18 99 18 72 Siege Activations . | . . . . . . Martial Activations . | . . . . . . Shielding Activations . | . . . . . . Robots Disrupted . | . . . . . . Combat Hostiles . | . . . . . . Robots Corrupted 10 | . . . 3 . 7 Combat Hostiles 5 | . . . 3 . 2 Parts Fried 16 | . . . 3 . 13 Impact Corruptions 32 | . . . 7 . 25 Robots Melted . | . . . . . . Combat Hostiles . | . . . . . . Parts Melted . | . . . . . . Heat Transferred . | . . . . . . Parts Sabotaged . | . . . . . . Parts Stolen . | . . . . . . Parts Stripped . | . . . . . . Power Chain Reactions . | . . . . . . Alert | -11 -10 -10 -8 -8 -7 ------- Run | Yrd Mat Sub Mat Sto Fac Maximum Alert Level . | . . . . . . Low Security (%) 100 | 100 100 . 100 100 100 Level 1 . | . . . . . . Level 2 . | . . . . . . Level 3 . | . . . . . . Level 4 . | . . . . . . Level 5 . | . . . . . . High Security . | . . . . . . Max Security . | . . . . . . Peak Influence 164 | . 45 . 145 125 164 Initial 1 | . . . . 1 . Average 24 | . 8 . 57 9 35 Influence Increases 863 | . 181 . 205 140 337 Destroy 0b10 Robot/C 280 | . 100 . 120 . 60 Destroy 0b10 Robot/NC 95 | . 30 . . . 65 Destroy Leader 94 | . 30 . 40 . 24 Successful Hack 61 | . 3 . . 5 53 Disable Machine 30 | . . . . . 30 Destroy Structure 3 | . 3 . . . . Partial Spotted 60 | . . . . 45 15 Lose Combat Pursuer 240 | . 15 . 45 90 90 Influence Decreases 720 | . 181 . 200 145 194 Entered New Map 4 | . . . . 4 . Time Decay 501 | . 171 . 150 16 164 Lost Part 90 | . 10 . 50 . 30 Purge Threat 125 | . . . . 125 . Squads Dispatched 13 | . 1 . . 4 8 Investigation 8 | . . . . 2 6 Extermination 1 | . . . . . 1 Reinforcement 4 | . 1 . . 2 1 Assault . | . . . . . . Garrison . | . . . . . . Intercept . | . . . . . . Searches Triggered . | . . . . . . Construction Impeded . | . . . . . . Haulers Reinforced . | . . . . . . Active Scanning Responses . | . . . . . . Cargo Convoy Interrupts . | . . . . . . Stealth | -11 -10 -10 -8 -8 -7 --------- Run | Yrd Mat Sub Mat Sto Fac Distress Signals 7 | . 2 . 1 3 1 Communications Jammed . | . . . . . . Distress Signals . | . . . . . . Times Spotted 74 | . 22 8 14 18 12 Peak Tracking Total 17 | . 6 3 8 17 5 Tactical Retreats 10 | . 1 2 2 1 4 Traps | -11 -10 -10 -8 -8 -7 ------- Run | Yrd Mat Sub Mat Sto Fac Traps Triggered 5 | . 1 . . . 4 Indirectly . | . . . . . . Trap Hack Attempts . | . . . . . . Triggered . | . . . . . . Disarmed . | . . . . . . Reprogrammed . | . . . . . . Reused . | . . . . . . Traps Extracted . | . . . . . . Installed . | . . . . . . Triggered . | . . . . . . Machines | -11 -10 -10 -8 -8 -7 ---------- Run | Yrd Mat Sub Mat Sto Fac Machines Disabled 2 | . . . . . 2 Max in Single Turn 1 | . . . . . 1 Machines Repaired . | . . . . . . Machines Dismantled . | . . . . . . Machines Sabotaged . | . . . . . . Overloaded Fab Kills . | . . . . . . Hacking | -11 -10 -10 -8 -8 -7 --------- Run | Yrd Mat Sub Mat Sto Fac Machines Accessed 16 | . 3 . 1 3 9 Terminals 12 | . 2 . 1 3 6 Fabricators . | . . . . . . Repair Stations 1 | . 1 . . . . Recycling Units 3 | . . . . . 3 Scanalyzers . | . . . . . . Garrison Access . | . . . . . . Total Hacks 49 | . 8 . 1 18 22 Successful 26 | . 2 . 1 15 8 Failed 23 | . 6 . . 3 14 Catastrophic 3 | . 1 . . . 2 Database Lockouts . | . . . . . . Manual 13 | . 6 . 1 . 6 Terminals 41 | . 6 . 1 18 16 Fabricators . | . . . . . . Repair Stations 2 | . 2 . . . . Recycling Units 6 | . . . . . 6 Scanalyzers . | . . . . . . Garrison Access . | . . . . . . Terminal Hacks 19 | . . . 1 15 3 Record 1 | . . . . . 1 Open Door 2 | . . . . 2 . Open DSF 1 | . . . . . 1 Branch Access Points 1 | . . . 1 . . Terminal Index 1 | . . . . . 1 Alert Level 9 | . . . . 9 . Unreport Threat 1 | . . . . 1 . Locate Traps 1 | . . . . 1 . Reinforcement Status 1 | . . . . 1 . Recall Reinforcements 1 | . . . . 1 . Fabricator Hacks . | . . . . . . Repair Station Hacks 2 | . 2 . . . . Scan Component 1 | . 1 . . . . Repair 1 | . 1 . . . . Recycling Unit Hacks 4 | . . . . . 4 Report Inventory 3 | . . . . . 3 Retrieve Components 1 | . . . . . 1 Scanalyzer . | . . . . . . Garrison Access Hacks . | . . . . . . Unauthorized Hacks 1 | . . . . . 1 Terminals 1 | . . . . . 1 Assimilate 1 | . . . . . 1 Fabricators . | . . . . . . Repair Stations . | . . . . . . Recycling Units . | . . . . . . Scanalyzers . | . . . . . . Garrison Access . | . . . . . . Data Cores Recovered . | . . . . . . Used . | . . . . . . Hacking Detections 13 | . 3 . . 3 7 Full Trace Events 8 | . 1 . . 2 5 Feedback Events . | . . . . . . Feedback Blocked . | . . . . . . Robot Schematics Acquired . | . . . . . . Robots Built . | . . . . . . Authchips . | . . . . . . Time . | . . . . . . Total Robot Build Rating . | . . . . . . Part Schematics Acquired . | . . . . . . Parts Built . | . . . . . . Authchips . | . . . . . . Time . | . . . . . . Total Part Build Rating . | . . . . . . Part Studies Acquired . | . . . . . . Parts Repaired 1 | . 1 . . . . Time 26 | . 26 . . . . Parts Recycled . | . . . . . . Recycled Matter . | . . . . . . Retrieved Matter . | . . . . . . Retrieved Components 3 | . . . . . 3 Parts Scanalyzed . | . . . . . . Part Schematics Acquired . | . . . . . . Parts Damaged . | . . . . . . Bothacking | -11 -10 -10 -8 -8 -7 ------------ Run | Yrd Mat Sub Mat Sto Fac Used RIF Installer . | . . . . . . Robots Hacked . | . . . . . . Non-combat . | . . . . . . Combat . | . . . . . . Robot Hacks Applied . | . . . . . . Relay Couplers Released . | . . . . . . Fabnet Peak Effective % . | . . . . . . Robots Rewired . | . . . . . . Allies Hacked . | . . . . . . Hacks Repelled . | . . . . . . Allies | -11 -10 -10 -8 -8 -7 -------- Run | Yrd Mat Sub Mat Sto Fac Total Allies . | . . . . . . Largest Group . | . . . . . . Highest-Rated Group . | . . . . . . Highest-Rated Ally . | . . . . . . Total Orders 1 | . . . . 1 . EXPLORE 1 | . . . . 1 . Ally Attacks . | . . . . . . Total Damage . | . . . . . . Kills . | . . . . . . Allies Corrupted . | . . . . . . Allies Melted . | . . . . . . Intel | -11 -10 -10 -8 -8 -7 ------- Run | Yrd Mat Sub Mat Sto Fac Active Infowar (turns) 2412 | . 895 395 349 130 643 Optics 1549 | . 32 395 349 130 643 Sensors 2011 | . 895 395 140 . 581 Robot Analysis Total . | . . . . . . Derelict Logs Recovered . | . . . . . . Drone Launches 14 | . . . . 14 . Drone Recoveries 2 | . . . . 2 . Exploration | -11 -10 -10 -8 -8 -7 ------------- Run | Yrd Mat Sub Mat Sto Fac Turns Passed 2514 | 75 922 395 349 130 643 Spaces Moved 2532 | 43 672 532 360 204 721 Core 83 | 22 . . . . 61 Treads 376 | 21 355 . . . . Legs . | . . . . . . Wheels 3 | . . . . . 3 Hover . | . . . . . . Flight 2070 | . 317 532 360 204 657 Fastest Speed 34 | 50 37 37 34 40 40 Average Speed 63 | 151 101 37 71 47 41 Slowest Speed 200 | 200 160 37 200 200 100 Overloaded Moves . | . . . . . . Propulsion Burnouts . | . . . . . . Robots Hopped 10 | . 4 . 2 3 1 Potential Cave-ins . | . . . . . . Cave-ins Triggered 1 | . . . . . 1 Exploration Rate (%) 32 | 4 57 25 35 56 16 Regions Visited 5 Branch Regions 2 Pre-discovered Areas . | . . . . . . Known Exits Taken 1 | . . . 1 . . Unknown Exits Taken 4 | 1 1 1 . 1 . Scrap Searched . | . . . . . . Spaces Dug 4 | . . 1 . . 3 Terrain Destroyed 7 | . 3 1 . . 3 Melee 3 | . . . . . 3 Projectile 4 | . 3 1 . . . AOE . | . . . . . . Terrain Rammed . | . . . . . . Walls Destroyed . | . . . . . . Machines Disabled . | . . . . . . Actions | -11 -10 -10 -8 -8 -7 --------- Run | Yrd Mat Sub Mat Sto Fac Total 3214 | 50 826 693 407 233 1005 Wait 480 | . 82 147 4 18 229 Move 2507 | 42 663 531 355 197 719 Hop 10 | . 4 . 2 3 1 Pick Up 23 | 2 9 . 6 3 3 Fast Attach 19 | 6 3 . 2 2 6 Attach 15 | . 5 1 4 1 4 Detach 9 | . 3 1 1 1 3 Swap 8 | . 4 1 2 . 1 Drop 22 | . 8 . 6 2 6 Fire 57 | . 45 12 . . . Melee 58 | . . . 25 . 33 Ram . | . . . . . . Kick . | . . . . . . Crush . | . . . . . . Escape Stasis . | . . . . . . Rewire . | . . . . . . Trap . | . . . . . . Miscellaneous 6 | . . . . 6 . Route ------- -11/Scrapyard -10/Materials (discovered 3 exits: [*Mat] / [*Min] / [*Sub]) -10/Subcaves -8/Materials (discovered 4 exits: *Fac x2 / *Sto x2) -8/Storage -7/Factory (discovered 1 exit: *Low) History --------- Turn | Location | Event 3 | -11/Scrapyard | Discovered new exit (range 16) 76 | -11/Scrapyard | Entered Materials 314 | -10/Materials | Build established: Mutant 459 | -10/Materials | Discovered new exit (range 15) 593 | -10/Materials | Discovered new exit (range 8) 656 | -10/Materials | Repaired Flight Unit 821 | -10/Materials | Discovered new exit (range 10) 998 | -10/Materials | Entered Subcaves 999 | -10/Subcaves | Approached by a straggling Scientist 1229 | -10/Subcaves | Ambushed by Subdwellers from Twisted Machinery 1278 | -10/Subcaves | Ambushed by Subdweller buried in earth 1392 | -10/Subcaves | Discovered new exit (range 2) 1393 | -10/Subcaves | Entered Materials 1393 | -8/Materials | Evolved 4 slots: Propulsion x2, Utility x2 1558 | -8/Materials | Discovered new exit (range 18) 1574 | -8/Materials | Lost 4 parts (2n2u) 1664 | -8/Materials | Discovered new exit (range 9) 1707 | -8/Materials | Discovered new exit (range 18) 1725 | -8/Materials | Identified exit to Storage 1742 | -8/Materials | Entered Storage 1865 | -8/Storage | Discovered new exit (range 18) 1868 | -8/Storage | Lost 12 allies 1872 | -8/Storage | Entered Factory 1872 | -7/Factory | Evolved 2 slots: Power x1, Utility x1 2080 | -7/Factory | Crushed by falling debris 2108 | -7/Factory | Discovered new exit (range 17) 2120 | -7/Factory | Identified exit to Lower Caves 2162 | -7/Factory | Build established: Scout 2515 | -7/Factory | Self-destructed Last Messages --------------- 02497_ R-06 Scavenger collects Unknown Storage. 02497_ R-06 Scavenger suffers critical hit (Smash). 02497_ Destroyed Tractor Beam. 02497_ R-06 Scavenger system corrupted by crushing effect. 02497_ R-06 Scavenger knocked back. 02500_ Destroyed Com. Wheel. 02500_ R-06 Scavenger system corrupted by crushing effect. 02500_ R-06 Scavenger knocked back. 02501_ R-06 Scavenger system terminally corrupted. 02501_ Com. Wheel fried. 02503_ Acquired 7 matter. 02514_ Triggered Proton Bomb Trap. 02514_ A bubble of electromagnetic force engulfs the area. 02514_ Nuclear Pulse Thruster destroyed. 02514_ Door malfunctions. Map ----- +----------------------------------------------------+ | ?????????????????????????????????????????????????? | | ?????????????????????????????????????????????????? | | ????????????????????????? ???????????????????? | | ????????????????????????? ???????????????????? | | ????????????????????????# #??????????????????? | | ????????????????????????# #??????????????????? | | ????????????????????????# #??????????????????? | | ????????????????????????# #??????????????????? | | ????????????????????????# #??????????????????? | | ?????????????????????#### #####??????????????? | | ????????????????????? ???????????????? | | ?????????????????????? #???????????????? | | ??????????????????????? []! #???????????????? | | ??????????????????????? []! #???????????????? | | ???????????????????????? [] #???????????????? | | ????????????????????????# #???????????????? | | ????????????????????????# #???????????????? | | ????????????????????????# ####????????????? | | ????????????????????????# ?????????????? | | ????????????############# #??????????????????? | | ????????????? ### ##############???????? | | ?????????????? #?#!#??# """T""" #???????? | | ?????????????"""""" #?#%#??# """ """ #???????? | | ?????????????"""""" #?#!#??# #???????? | | ???????????# """""" ### #### """ """ #???????? | | ???????????# """""" /@%!! + """ """ #???????? | | ############ ###/#### """ """ #???????? | | # """""" # ! ## #???????? | | """] """ # """""" # """ ## ! #???????? | | "Y/ """ # """""" # """ ############???????? | | """ """ # """""" # """ #??????????????????? | | "" # [# #??????????????????? | | "" #######+#+##########??????????????????? | | + #???????????????????????????? | | ##### #???????????????????????????? | | #???# #???????????????????????????? | | #???# +???????????????????????????? | | #???# #???????????????????????????? | | #???# #???????????????????????????? | | ####+########### #???????????????????????????? | | # #???????????????????????????? | | # #???????????????????????????? | | # #???????????????????????????? | | + #???????????????????????????? | | # #???????????????????????????? | | # ###############???????????????????????????? | | # # #????????????????????????????? | | # # #????????????????????????????? | | ## # #????????????????????????????? | | ?# # #????????????????????????????? | +----------------------------------------------------+ Best States ------------- Heat Dissipation 34 Energy Generation 20 Energy Capacity 175 Matter Stores 300 Matter Capacity 300 Sight Range 18 Robot Scan Range 15 Terrain Scan Density 10 Additional Mass Support 6 Evasion (%) 71 Recoil Reduction 2 Offensive Hacking 30 Item Schematics ----------------- None Robot Schematics ------------------ None Fabricated ------------ Nothing Repaired ---------- Flight Unit | 75% | -10/Materials Studied --------- None Alien Tech Used ----------------- None Achievements -------------- Maximum Efficiency Plot Armor Challenges ------------ None Game ------ Seed MiningHypervelocityLoader Manual? 0 Play Time 00:39:53 Cumulative 97.8 hours Start 2025.11.06 @ 15:47:06 End 2025.11.06 @ 16:31:31 Sessions 1 Manual Loads 0 Difficulty Rogue Special Mode None Game No. 60 Rogue 54 Adventurer 6 Explorer 0 Win Type - Total 3 Types 3/0/0/0/0/0/0/0/0/0 Lore% 37 Gallery% 44 Achievement% 29 Wizard Run 0 Options --------- Layout 2 ASCII 1 Keyboard 1 Movement Vi Keybinds 0 Fullscreen 1 Font 32/SmallcapsGlow Map View 50x44 Zoom Use 0% Tactical HUD 1 Map Filters NONE Filters NONE Steam 1 RUN: 2732df6b-0b6c-47a9-9758-562434874d5d